{"text_format":"1","workbook":"xlsx","n_sheets":1,"sheets":["N4_Prog_5 Assess_Practice_Sheet"],"not_rendered":{"charts":0,"images":2,"macros":1,"external_links":0,"defined_names":1,"comments":0,"pivot_tables":0},"unopened":[],"bounds":{"document_bytes":16777216,"sheet_cells":100000,"rows_first":2000,"rows_last":500,"rows_between":2000,"halvings":0,"cell_chars":16384,"cell_head_chars":4096},"cells_cut":0,"cells_raw":0,"read":"whole","date_system":"1900"}

{"sheet":"N4_Prog_5 Assess_Practice_Sheet","index":0,"n_rows":228,"n_cols":39,"rows_kept":228,"cut":false,"hidden":false,"merged":[[219,2,223,31],[188,2,192,31],[184,18,184,20],[203,10,203,13],[149,16,149,17],[151,2,155,31],[173,16,173,17],[175,2,179,31],[169,14,169,18],[168,19,168,20],[173,13,173,15],[205,2,209,31],[74,2,78,31],[143,14,143,15],[164,17,165,19],[103,14,103,16],[105,2,109,31],[119,2,123,31],[117,16,117,17],[125,18,125,20],[127,2,131,31],[4,1,4,25],[6,26,6,29],[6,30,6,31],[15,12,16,13],[39,5,39,7],[37,10,37,11],[1,26,1,29],[2,26,2,29],[19,20,19,21],[81,16,81,17],[13,4,13,6],[17,7,17,9],[22,2,29,31],[1,30,1,31],[2,30,2,31],[3,30,3,31],[4,30,4,31],[5,30,5,31],[3,26,3,29],[4,26,4,29],[5,26,5,29],[2,1,2,25],[83,2,87,31],[7,26,7,29],[8,26,8,29],[7,30,7,31],[8,30,8,31],[9,30,9,31],[9,26,9,29],[47,2,57,31],[19,16,19,19],[44,15,44,17],[61,26,61,29],[68,5,68,7],[63,2,67,4],[69,15,69,19],[63,12,68,14],[72,16,72,17]]}
[]
[null,null,null,null,null,null,null,null,null,null,null,null,null,null,null,null,null,null,null,null,null,null,null,null,null,null,"EF 1.2c"]
[null,"NATIONAL 4",null,null,null,null,null,null,null,null,null,null,null,null,null,null,null,null,null,null,null,null,null,null,null,null,"EF 1.2d"]
[null,null,null,null,null,null,null,null,null,null,null,null,null,null,null,null,null,null,null,null,null,null,null,null,null,null,"R 1.2b"]
[null,"PROGRAMME 5 ASSESSMENT 1",null,null,null,null,null,null,null,null,null,null,null,null,null,null,null,null,null,null,null,null,null,null,null,null,"EF 1.2a"]
[]
[null,"Q1.   A cereal box is in the shape of a cuboid.",null,null,null,null,null,null,null,null,null,null,null,null,null,null,null,null,null,null,null,null,null,null,null,null,"R 1.2d"]
[null,null,null,null,null,null,null,null,null,null,null,null,null,null,null,null,null,null,null,null,null,null,null,null,null,null,"R 1.3a"]
[null,null,{"$f":"\"The cuboid is \"&AH10&\" centimetres long, \"&AH11&\" centimetres wide \"","v":"The cuboid is 40 centimetres long, 5 centimetres wide "},null,null,null,null,null,null,null,null,null,null,null,null,null,null,null,null,null,null,null,null,null,null,null,"EF 1.1d",null,null,null,null,null,null,{"$f":"ROUND(RAND()*(9-6)+6,0)*10","v":80},{"$f":"CONCATENATE(AH9,\" cm\")","v":"80 cm"}]
[null,null,{"$f":"\"and \"&AH9&\" centimetres high, as shown in the diagram below.\"","v":"and 80 centimetres high, as shown in the diagram below."},null,null,null,null,null,null,null,null,null,null,null,null,null,null,null,null,null,null,null,null,null,null,null,"EF 1.1b",null,null,null,null,null,null,{"$f":"ROUND(RAND()*(5-1)+1,0)*10","v":40},{"$f":"CONCATENATE(AH10,\" cm\")","v":"40 cm"}]
[null,null,null,null,null,null,null,null,null,null,null,null,null,null,null,null,null,null,null,null,null,null,null,null,null,null,null,null,null,null,null,null,null,{"$f":"ROUND(RAND()*(9-3)+3,0)","v":5},"5 cm"]
[]
[]
[null,null,null,null,{"$f":"AI9","v":"80 cm"}]
[]
[null,null,null,null,null,null,null,null,null,null,null,null,{"$f":"AI11","v":"5 cm"}]
[null,null,null,null,null,null,null,null,null,null,null,null,null,null,null,null,null,null,null,null,null,null,null,null,null,null,null,null,null,null,null,null,null,{"$f":"2*AH10*AH9","v":6400}]
[null,null,null,null,null,null,null,{"$f":"AI10","v":"40 cm"},null,null,null,null,null,null,null,null,null,null,null,null,null,null,null,null,null,null,null,null,null,null,null,null,null,{"$f":"2*AH9*AH11","v":800}]
[null,null,null,null,null,null,null,null,null,null,null,null,null,null,null,null,null,null,null,null,null,null,null,null,null,null,null,null,null,null,null,null,null,{"$f":"2*AH10*AH11","v":400}]
[null,null,"Find the surface area of the cuboid shown.  ",null,null,null,null,null,null,null,null,null,null,null,null,null,null,null,null,null,"cm2",null,null,null,null,null,"( 2 marks )",null,null,null,null,null,null,{"$f":"AH17+AH18+AH19","v":7600}]
[]
[]
[]
[]
[]
[]
[]
[]
[]
[]
[]
[]
[null,{"$f":"\"Q2.   A farmer has a large cylindrical container for storing grain to feed his hens. \"","v":"Q2.   A farmer has a large cylindrical container for storing grain to feed his hens. "},null,null,null,null,null,null,null,null,null,null,null,null,null,null,null,null,null,null,null,null,null,null,null,null,"EF 1.2d"]
[null,null,{"$f":"\"The area of the top of the container is \"&AH37&\" square metres.\"","v":"The area of the top of the container is 13 square metres."}]
[null,null,{"$f":"\"The height of the container is \"&AH38&\" metres.\"","v":"The height of the container is 5 metres."}]
[]
[null,null,null,null,null,null,null,null,null,null,null,null,null,null,null,null,null,null,null,null,null,null,null,null,null,null,null,null,null,null,null,null,null,{"$f":"ROUND(RAND()*(30-11)+11,0)","v":13},{"$f":"CONCATENATE(AH37,\" m\")","v":"13 m"}]
[null,null,null,null,null,null,null,null,null,null,{"$f":"AH37","v":13},null,"m2",null,null,null,null,null,null,null,null,null,null,null,null,null,null,null,null,null,null,null,null,{"$f":"ROUND(RAND()*(19-3)+3,0)*0.5","v":5},{"$f":"CONCATENATE(AH38,\" m\")","v":"5 m"}]
[]
[null,null,null,null,null,{"$f":"AI38","v":"5 m"}]
[]
[]
[null,null,null,null,null,null,null,null,null,null,null,null,null,null,null,null,null,null,null,null,null,null,null,null,null,null,"( 2 marks )"]
[]
[null,null,"Calculate the volume of the container.",null,null,null,null,null,null,null,null,null,null,null,null,null,null,null,"m3",null,null,null,null,null,null,null,null,null,null,null,null,null,null,{"$f":"AH37*AH38","v":65}]
[]
[]
[]
[]
[]
[]
[]
[]
[]
[]
[]
[]
[]
[]
[]
[]
[null,"Q3.  The 2 shapes below are similar right - angled triangles.",null,null,null,null,null,null,null,null,null,null,null,null,null,null,null,null,null,null,null,null,null,null,null,null,"R 1.2b",null,null,null,null,null,null,{"$f":"ROUND(RAND()*(19-3)+3,0)*0.5","v":6.5}]
[null,null,null,null,null,null,null,null,null,null,null,null,null,null,null,null,null,null,null,null,null,null,null,null,null,null,null,null,null,null,null,null,null,{"$f":"2*ROUND(RAND()*(30-12)+3,0)","v":34},{"$f":"CONCATENATE(AH63,\" cm\")","v":"34 cm"}]
[null,null,{"$f":"AI65","v":"28 cm"},null,null,null,null,null,null,null,null,null,"h   ",null,null,null,null,null,null,null,null,null,null,null,null,null,null,null,null,null,null,null,null,{"$f":"AH62*AH63","v":221},{"$f":"CONCATENATE(AH64,\" cm\")","v":"221 cm"}]
[null,null,null,null,null,null,null,null,null,null,null,null,null,null,null,null,null,null,null,null,null,null,null,null,null,null,null,null,null,null,null,null,null,{"$f":"AH63-ROUND(RAND()*(6-2)+2,0)","v":28},"28 cm"]
[]
[]
[]
[null,null,null,null,null,{"$f":"AI63","v":"34 cm"}]
[null,null,null,null,null,null,null,null,null,null,null,null,null,null,null,{"$f":"AI64","v":"221 cm"}]
[]
[]
[null,null,"(a)   Calculate the enlargement scale factor",null,null,null,null,null,null,null,null,null,null,null,null,null,null,null,null,null,null,null,null,null,null,null,"( 1 mark )",null,null,null,null,null,null,{"$f":"AH62","v":6.5}]
[]
[]
[]
[]
[]
[]
[]
[]
[null,null,"(b)   Calculate the height of the larger triangle",null,null,null,null,null,null,null,null,null,null,null,null,null,null,null,"cm",null,null,null,null,null,null,null,"( 1 mark )",null,null,null,null,null,null,{"$f":"AH65*AH62","v":182}]
[]
[]
[]
[]
[]
[]
[]
[]
[]
[]
[null,"Q4.   The table below has a semi-circular top.",null,null,null,null,null,null,null,null,null,null,null,null,null,null,null,null,null,null,null,null,null,null,null,null,"EF 1.2a",null,null,null,null,null,null,{"$f":"ROUND(RAND()*(2-0.5)+0.5,1)","v":0.8}]
[null,null,{"$f":"\"  The semi-circular top has a radius of \"&AH93&\" metres.\"","v":"  The semi-circular top has a radius of 0.8 metres."}]
[]
[]
[]
[]
[]
[]
[null,null,null,null,null,null,null,null,null,null,null,null,null,null,null,null,null,null,null,null,null,null,null,null,null,null,"( 2 marks )"]
[]
[]
[null,null,"   Calculate the area of the table top.",null,null,null,null,null,null,null,null,null,null,null,null,null,null,"m2","    (two decimal places)",null,null,null,null,null,null,null,null,null,null,null,null,null,null,{"$f":"ROUND(0.5*PI()*POWER((AH93),2),2)","v":1.01}]
[]
[]
[]
[]
[]
[]
[]
[]
[]
[]
[null,{"$f":"\"Q5.   In a class, the ratio of boys to girls is \"&AH115&\" : \"&AH116","v":"Q5.   In a class, the ratio of boys to girls is 4 : 3"},null,null,null,null,null,null,null,null,null,null,null,null,null,null,null,null,null,null,null,null,null,null,null,null,"( 2 marks )",null,null,null,null,null,null,{"$f":"ROUND(RAND()*(9-3)+3,0)","v":4},{"$f":"AH115+AH116","v":7}]
[null,null,{"$f":"\"  There are \"&AH117&\" boys in the class.\"","v":"  There are 36 boys in the class."},null,null,null,null,null,null,null,null,null,null,null,null,null,null,null,null,null,null,null,null,null,null,null,null,null,null,null,null,null,null,{"$f":"AH115-1","v":3},{"$f":"AI115*ROUND(RAND()*(12-3)+3,0)","v":63}]
[null,null,null,null,null,null,null,null,null,null,null,null,null,null,null,null,null,null,null,null,null,null,null,null,null,null,null,null,null,null,null,null,null,{"$f":"AH115*AI116/AI115","v":36}]
[null,null,"(a)   How many girls are there in the class?",null,null,null,null,null,null,null,null,null,null,null,null,null,null,null," girls",null,null,null,null,null,null,null,null,null,null,null,null,null,null,{"$f":"AH116*AI116/AI115","v":27}]
[]
[]
[]
[]
[]
[]
[]
[null,null,"(b)   How many children are in the class altogether?",null,null,null,null,null,null,null,null,null,null,null,null,null,null,null,null,null,null," pupils",null,null,null,null,"( 2 marks )",null,null,null,null,null,null,{"$f":"AI116","v":63}]
[]
[]
[]
[]
[]
[]
[]
[]
[]
[]
[null,{"$f":"\"Q6.   AB is the diameter of a circle, centre O. \"","v":"Q6.   AB is the diameter of a circle, centre O. "},null,null,null,null,null,null,null,null,null,null,null,null,null,null,null,null,null,null,null,null,null,null,null,null,"R 1.2d",null,null,null,null,null,null,{"$f":"ROUND(RAND()*(78-55)+55,0)","v":57}]
[null,null,{"$f":"\"  D is a point on the circumference of the circle.\"","v":"  D is a point on the circumference of the circle."}]
[]
[null,null,{"$f":"\"  Angle BAD is \"&AH137&\" degrees.\"","v":"  Angle BAD is 57 degrees."}]
[]
[]
[]
[null,null,null,null,null,null,null,null,null,null,null,null,null,null,{"$f":"AH137","v":57},null,"o"]
[]
[]
[]
[]
[]
[null,null,"  Calculate the size of the shaded angle ABD.",null,null,null,null,null,null,null,null,null,null,null,null,null,null,null,"o",null,null,null,null,null,null,null,"( 2 marks )",null,null,null,null,null,null,{"$f":"90-AH137","v":33}]
[]
[]
[]
[]
[]
[]
[]
[]
[]
[]
[null,{"$f":"\"Q7.   Calculate the length of side x in the right-angled triangle below.  \"","v":"Q7.   Calculate the length of side x in the right-angled triangle below.  "},null,null,null,null,null,null,null,null,null,null,null,null,null,null,null,null,null,null,null,null,null,null,null,null,"R 1.3a",null,null,null,null,null,null,{"$f":"ROUND(RAND()*(42-27)+27,0)","v":31}]
[null,null,null,null,null,null,null,null,null,null,null,null,null,null,null,null,null,null,null,null,null,null,null,null,null,null,null,null,null,null,null,null,null,{"$f":"AH174/COS(AH161/180*PI())","v":65.331470244058508}]
[null,null,null,null,null,null,null,null,null,null,null,null,null,null,null,null,null,null,null,null,null,null,null,null,null,null,null,null,null,null,null,null,null,{"$f":"ROUND(AH162,2)","v":65.33},{"$f":"CONCATENATE(AH163,\" cm\")","v":"65.33 cm"}]
[]
[null,null,null,null,null,null,null,null,null,null,null,null,null,null,null,null,null,{"$f":"AI163","v":"65.33 cm"}]
[]
[]
[]
[null,null,null,null,null,null,null,null,null,null,null,null,null,null,null,null,null,null,null,{"$f":"AH161","v":31},null,"o"]
[null,null,null,null,null,null,null,null,null,null,null,null,null,null,"x"]
[]
[]
[]
[null,null,null,null,null,null,null,null,null,null,null,null,null,"x =",null,null,null,null,"cm","    ( nearest cm )",null,null,null,null,null,null,"( 3 marks )",null,null,null,null,null,null,{"$f":"ROUND(RAND()*(60-12)+12,0)","v":56}]
[]
[]
[]
[]
[]
[]
[]
[]
[]
[null,null,null,null,null,null,null,null,null,null,null,null,null,null,null,null,null,null,null,null,null,null,null,null,null,null,null,null,null,null,null,null,null,null,{"$f":"ROUND(RAND()*(105-97)+97,0)","v":104},{"$f":"AI184+1","v":105}]
[null,{"$f":"\"Q8.   (a)  When \"&AI186&\" = \"&AH185&\" and \"&AI188&\" = \"&AH187&\", find the value of \"&AH186&AI186&\" – \"&AH188&AI188&\". \"","v":"Q8.   (a)  When h = 4 and i = 2, find the value of 8h – 3i. "},null,null,null,null,null,null,null,null,null,null,null,null,null,null,null,null,null,null,null,null,null,null,null,null,"EF 1.1d",null,null,null,null,null,null,{"$f":"ROUND(RAND()*(5-2)+2,0)","v":4}]
[null,null,null,null,null,null,null,null,null,null,null,null,null,null,null,null,null,null,null,null,null,null,null,null,null,null,null,null,null,null,null,null,null,{"$f":"ROUND(RAND()*(9-5)+5,0)","v":8},{"$f":"CHAR(AI184)","v":"h"}]
[null,null,null,null,null,null,null,null,null,null,null,null,null,null,null,null,null,null,null,null,null,null,null,null,null,null,"( 2 marks )",null,null,null,null,null,null,{"$f":"ROUND(RAND()*(4-2)+2,0)","v":2}]
[null,null,null,null,null,null,null,null,null,null,null,null,null,null,null,null,null,null,null,null,null,null,null,null,null,null,null,null,null,null,null,null,null,{"$f":"ROUND(RAND()*(5-2)+2,0)","v":3},{"$f":"CHAR(AJ184)","v":"i"}]
[null,null,null,null,null,null,null,null,null,null,null,null,null,null,null,null,null,null,null,null,null,null,null,null,null,null,null,null,null,null,null,null,null,{"$f":"AH186*AH185-AH188*AH187","v":26}]
[]
[]
[]
[]
[]
[]
[null,null,"(b)  Sally works for a camera repair shop.  Her weekly pay is calculated using the formula:"]
[null,null,null,null,null,null,null,null,null,null,null,null,null,null,null,null,null,null,null,null,null,null,null,null,null,null,null,null,null,null,null,null,null,{"$f":"ROUND(RAND()*(19-11)+11,0)*0.5","v":8.5}]
[null,null,null,null,null,null,null,{"$f":"\"P = \"&AH197&\" H + \"&AH198&\" R\"","v":"P = 8.5 H + 2 R"},null,null,null,null,null,null,null,null,null,null,null,null,null,null,null,null,null,null,null,null,null,null,null,null,null,{"$f":"ROUND(RAND()*(10-3)+3,0)*0.5","v":2}]
[null,null,null,null,null,null,null,null,null,null,null,null,null,null,null,null,null,null,null,null,null,null,null,null,null,null,null,null,null,null,null,null,null,{"$f":"ROUND(RAND()*(50-25)+25,0)","v":28}]
[null,null,"where P is her pay (in pounds), H is the hours she works and R is the number of repairs she makes.",null,null,null,null,null,null,null,null,null,null,null,null,null,null,null,null,null,null,null,null,null,null,null,null,null,null,null,null,null,null,{"$f":"ROUND(RAND()*(60-25)+25,0)","v":32}]
[]
[null,null,{"$f":"\"One week she works \"&AH199&\" hours and repairs \"&AH200&\" cameras.     Calculate her pay for that week.\"","v":"One week she works 28 hours and repairs 32 cameras.     Calculate her pay for that week."}]
[]
[null,null,null,null,null,null,null,null,null,"£",null,null,null,null,null,null,null,null,null,null,null,null,null,null,null,null,"( 2 marks )",null,null,null,null,null,null,{"$f":"AH199*AH197+AH198*AH200","v":302}]
[]
[]
[]
[]
[]
[]
[]
[]
[]
[]
[null,{"$f":"\"Q9.   Factorise   \"&AI215&AJ215&\"  \"&AK215&\"  \"&AL215&\". \"","v":"Q9.   Factorise   7u  +  21. "},null,null,null,null,null,null,null,null,null,null,null,null,null,null,null,null,null,null,null,null,null,null,null,null,"EF 1.1b",null,null,null,null,null,null,{"$f":"ROUND(RAND()*(122-116)+116,0)","v":117},{"$f":"AH216","v":7},{"$f":"AH217","v":"u"},"+",{"$f":"AH220","v":21}]
[null,null,null,null,null,null,null,null,null,null,null,null,null,null,null,null,null,null,null,null,null,null,null,null,null,null,null,null,null,null,null,null,null,{"$f":"ROUND(RAND()*(9-3)+3,0)","v":7}]
[null,null,null,null,null,null,null,null,null,null,null,null,null,null,null,null,null,null,null,null,null,null,null,null,null,null,null,null,null,null,null,null,null,{"$f":"CHAR(AH215)","v":"u"}]
[null,null,null,null,null,null,null,null,null,null,null,null,null,null,null,null,null,null,null,null,null,null,null,null,null,null,"( 2 marks )",null,null,null,null,null,null,"+"]
[null,null,null,null,null,null,null,null,null,null,null,null,null,null,null,null,null,null,null,null,null,null,null,null,null,null,null,null,null,null,null,null,null,{"$f":"ROUND(RAND()*(4-2)+2,0)","v":3},{"$f":"ROUND(RAND()*(1-0)+0,0)","v":0}]
[null,null,null,null,null,null,null,null,null,null,null,null,null,null,null,null,null,null,null,null,null,null,null,null,null,null,null,null,null,null,null,null,null,{"$f":"AH216*AH219","v":21}]
[]
[null,null,null,null,null,null,null,null,null,null,null,null,null,null,null,null,null,null,null,null,null,null,null,null,null,null,null,null,null,null,null,null,null,{"$f":"AH216","v":7},"(",{"$f":"AH217","v":"u"},"+",{"$f":"AH219","v":3},")"]
[]
[]
[]
[]
[]
[null,null,null,null,null,null,null,null,"END OF QUESTION PAPER",null,null,null,null,null,null,null,null,null,null,null,null,null,null,null,null,null,"Total 22  marks"]